[Event "FIDE Grand Swiss 2023"]
[Site "Villa Marina, Douglas, Isle of Man, Isle Of Man"]
[Date "2023.11.02"]
[Round "8.19"]
[White "Artemiev, Vladislav"]
[Black "Gledura, Benjamin"]
[Result "1/2-1/2"]
[TimeControl "40/90 + 30 + 30s/move"]
[WhiteFideId "24101605"]
[BlackFideId "712779"]
[WhiteElo "2697"]
[BlackElo "2633"]

1. e4 {[%clk 01:40:48]} {[%emt 00:00:12]} c5 {[%clk 01:40:33]} {[%emt
00:00:28]} 2. Nf3 {[%clk 01:40:53]} {[%emt 00:00:24]} d6 {[%clk 01:40:52]}
{[%emt 00:00:12]} 3. Bb5+ {[%clk 01:36:57]} {[%emt 00:04:25]} Bd7 {[%clk
01:41:01]} {[%emt 00:00:21]} 4. Bxd7+ {[%clk 01:36:47]} {[%emt 00:00:41]} Nxd7
{[%clk 01:41:13]} {[%emt 00:00:18]} 5. O-O {[%clk 01:36:07]} {[%emt 00:01:08]}
e6 {[%clk 01:41:09]} {[%emt 00:00:34]} 6. c3 {[%clk 01:27:42]} {[%emt
00:08:55]} Ngf6 {[%clk 01:41:14]} {[%emt 00:00:27]} 7. Qe2 {[%clk 01:25:54]}
{[%emt 00:02:17]} Be7 {[%clk 01:41:25]} {[%emt 00:00:19]} 8. Rd1 {[%clk
01:21:19]} {[%emt 00:05:04]} O-O {[%clk 01:40:55]} {[%emt 00:01:00]} 9. d4
{[%clk 01:21:18]} {[%emt 00:00:33]} cxd4 {[%clk 01:40:50]} {[%emt 00:00:35]} 10.
cxd4 {[%clk 01:21:32]} {[%emt 00:00:15]} b5 {[%clk 01:38:46]} {[%emt 00:02:35]}
11. Bg5 {[%clk 01:01:44]} {[%emt 00:20:18]} a6 {[%clk 01:32:13]} {[%emt
00:07:03]} 12. a4 {[%clk 00:48:47]} {[%emt 00:13:26]} h6 {[%clk 01:27:48]}
{[%emt 00:04:55]} 13. Bh4 {[%clk 00:46:49]} {[%emt 00:02:28]} bxa4 {[%clk
01:03:20]} {[%emt 00:24:59]} 14. Rxa4 {[%clk 00:45:13]} {[%emt 00:02:05]} a5
{[%clk 01:01:52]} {[%emt 00:01:58]} 15. Nc3 {[%clk 00:42:58]} {[%emt 00:02:45]}
Nb6 {[%clk 00:57:14]} {[%emt 00:05:09]} 16. Raa1 {[%clk 00:28:53]} {[%emt
00:14:34]} a4 {[%clk 00:43:47]} {[%emt 00:13:57]} 17. Qb5 {[%clk 00:20:28]}
{[%emt 00:08:55]} Rb8 {[%clk 00:42:54]} {[%emt 00:01:23]} 18. Bxf6 {[%clk
00:12:17]} {[%emt 00:08:41]} Bxf6 {[%clk 00:43:12]} {[%emt 00:00:13]} 19. e5
{[%clk 00:11:51]} {[%emt 00:00:56]} Be7 {[%clk 00:42:11]} {[%emt 00:01:31]} 20.
Nxa4 {[%clk 00:09:05]} {[%emt 00:03:17]} Nxa4 {[%clk 00:42:00]} {[%emt
00:00:40]} 21. Qxa4 {[%clk 00:09:29]} {[%emt 00:00:05]} Rxb2 {[%clk 00:42:17]}
{[%emt 00:00:14]} 22. Qa7 {[%clk 00:08:55]} {[%emt 00:01:04]} dxe5 {[%clk
00:34:34]} {[%emt 00:08:12]} 23. dxe5 {[%clk 00:08:56]} {[%emt 00:00:29]} Qb6
{[%clk 00:34:54]} {[%emt 00:00:11]} 24. Qxb6 {[%clk 00:09:20]} {[%emt
00:00:06]} Rxb6 {[%clk 00:35:19]} {[%emt 00:00:05]} 25. Rab1 {[%clk 00:08:10]}
{[%emt 00:01:39]} Rxb1 {[%clk 00:35:12]} {[%emt 00:00:37]} 26. Rxb1 {[%clk
00:08:35]} {[%emt 00:00:05]} g5 {[%clk 00:32:14]} {[%emt 00:03:27]} 27. h3
{[%clk 00:06:08]} {[%emt 00:02:58]} Rc8 {[%clk 00:32:07]} {[%emt 00:00:38]} 28.
g4 {[%clk 00:04:28]} {[%emt 00:02:10]} Rc2 {[%clk 00:27:34]} {[%emt 00:05:03]}
29. Rd1 {[%clk 00:04:40]} {[%emt 00:00:17]} Bc5 {[%clk 00:25:25]} {[%emt
00:02:40]} 30. Rd2 {[%clk 00:05:03]} {[%emt 00:00:07]} Rxd2 {[%clk 00:25:12]}
{[%emt 00:00:42]} 31. Nxd2 {[%clk 00:05:28]} {[%emt 00:00:05]} Kf8 {[%clk
00:25:31]} {[%emt 00:00:12]} 32. Kg2 {[%clk 00:03:44]} {[%emt 00:02:14]} Ke7
{[%clk 00:24:57]} {[%emt 00:01:03]} 33. Kg3 {[%clk 00:01:46]} {[%emt 00:02:28]}
Kd7 {[%clk 00:17:36]} {[%emt 00:07:51]} 34. Ne4 {[%clk 00:01:10]} {[%emt
00:01:06]} Be7 {[%clk 00:12:05]} {[%emt 00:06:01]} 35. f4 {[%clk 00:01:35]}
{[%emt 00:00:05]} Kc6 {[%clk 00:12:02]} {[%emt 00:00:34]} 36. Kf3 {[%clk
00:00:53]} {[%emt 00:01:11]} Kd5 {[%clk 00:10:51]} {[%emt 00:01:42]} 37. Nc3+
{[%clk 00:01:15]} {[%emt 00:00:07]} Kc4 {[%clk 00:10:00]} {[%emt 00:01:21]} 38.
Ne4 {[%clk 00:01:38]} {[%emt 00:00:07]} Kd5 {[%clk 00:05:52]} {[%emt 00:04:38]}
39. Nc3+ {[%clk 00:02:01]} {[%emt 00:00:07]} Kd4 {[%clk 00:04:40]} {[%emt
00:01:42]} 40. Nb5+ {[%clk 00:01:55]} {[%emt 00:00:37]} Kc5 {[%clk 00:04:57]}
{[%emt 00:00:12]} 41. Nc3 {[%clk 00:02:08]} {[%emt 00:00:17]} Kd4 {[%clk
00:03:31]} {[%emt 00:01:56]} 42. Nb5+ {[%clk 00:01:00]} {[%emt 00:01:38]} Kc5
{[%clk 00:03:45]} {[%emt 00:00:16]} 1/2-1/2

[Event "FIDE Grand Swiss 2023"]
[Site "Villa Marina, Douglas, Isle of Man, Isle Of Man"]
[Date "2023.11.02"]
[Round "8.20"]
[White "Nihal, Sarin"]
[Black "Huschenbeth, Niclas"]
[Result "1-0"]
[TimeControl "40/90 + 30 + 30s/move"]
[WhiteFideId "25092340"]
[BlackFideId "24604747"]
[WhiteElo "2694"]
[BlackElo "2605"]

1. c4 {[%clk 01:40:03]} {[%emt 00:00:56]} e6 {[%clk 01:40:06]} {[%emt
00:00:55]} 2. Nf3 {[%clk 01:37:59]} {[%emt 00:02:32]} Nf6 {[%clk 01:40:02]}
{[%emt 00:00:36]} 3. b3 {[%clk 01:27:05]} {[%emt 00:11:24]} d5 {[%clk
01:36:36]} {[%emt 00:03:56]} 4. Bb2 {[%clk 01:27:28]} {[%emt 00:00:07]} c5
{[%clk 01:35:27]} {[%emt 00:01:40]} 5. cxd5 {[%clk 01:25:05]} {[%emt 00:02:53]}
exd5 {[%clk 01:35:44]} {[%emt 00:00:13]} 6. g3 {[%clk 01:25:29]} {[%emt
00:00:06]} Be7 {[%clk 01:22:58]} {[%emt 00:13:17]} 7. Bg2 {[%clk 01:25:34]}
{[%emt 00:00:24]} O-O {[%clk 01:23:21]} {[%emt 00:00:07]} 8. O-O {[%clk
01:25:45]} {[%emt 00:00:19]} b6 {[%clk 01:22:02]} {[%emt 00:01:49]} 9. d4
{[%clk 01:23:48]} {[%emt 00:02:26]} Bb7 {[%clk 01:19:48]} {[%emt 00:02:45]} 10.
Nc3 {[%clk 01:17:56]} {[%emt 00:06:22]} Nbd7 {[%clk 01:16:42]} {[%emt
00:03:35]} 11. Nh4 {[%clk 00:56:54]} {[%emt 00:21:32]} Re8 {[%clk 01:03:57]}
{[%emt 00:13:17]} 12. Nf5 {[%clk 00:52:57]} {[%emt 00:04:25]} Bf8 {[%clk
01:03:32]} {[%emt 00:00:56]} 13. dxc5 {[%clk 00:41:15]} {[%emt 00:12:13]} Nxc5
{[%clk 01:01:33]} {[%emt 00:02:29]} 14. Rc1 {[%clk 00:36:59]} {[%emt 00:04:46]}
g6 {[%clk 00:45:56]} {[%emt 00:16:08]} 15. Ne3 {[%clk 00:23:55]} {[%emt
00:13:33]} Bg7 {[%clk 00:45:28]} {[%emt 00:00:58]} 16. Na4 {[%clk 00:24:18]}
{[%emt 00:00:06]} Nce4 {[%clk 00:43:16]} {[%emt 00:02:44]} 17. Bd4 {[%clk
00:24:42]} {[%emt 00:00:06]} Qd7 {[%clk 00:37:27]} {[%emt 00:06:19]} 18. Rc2
{[%clk 00:22:24]} {[%emt 00:02:48]} Rac8 {[%clk 00:33:51]} {[%emt 00:04:06]} 19.
Rxc8 {[%clk 00:22:30]} {[%emt 00:00:24]} Rxc8 {[%clk 00:33:48]} {[%emt
00:00:33]} 20. Qa1 {[%clk 00:22:45]} {[%emt 00:00:15]} Qe6 {[%clk 00:27:37]}
{[%emt 00:06:42]} 21. Nc3 {[%clk 00:17:09]} {[%emt 00:06:05]} h5 {[%clk
00:15:42]} {[%emt 00:12:25]} 22. Rd1 {[%clk 00:06:46]} {[%emt 00:10:52]} Rd8
{[%clk 00:14:54]} {[%emt 00:01:19]} 23. h4 {[%clk 00:04:25]} {[%emt 00:02:51]}
Bh6 {[%clk 00:10:24]} {[%emt 00:05:00]} 24. Nxe4 {[%clk 00:04:49]} {[%emt
00:00:06]} Nxe4 {[%clk 00:10:50]} {[%emt 00:00:04]} 25. Nf1 {[%clk 00:05:02]}
{[%emt 00:00:16]} Rc8 {[%clk 00:09:44]} {[%emt 00:01:37]} 26. Qb2 {[%clk
00:05:14]} {[%emt 00:00:18]} Qc6 {[%clk 00:08:25]} {[%emt 00:01:49]} 27. Ne3
{[%clk 00:05:06]} {[%emt 00:00:38]} Qe6 {[%clk 00:06:28]} {[%emt 00:02:27]} 28.
Nc2 {[%clk 00:05:25]} {[%emt 00:00:11]} Nxg3 {[%clk 00:05:17]} {[%emt
00:01:40]} 29. fxg3 {[%clk 00:05:50]} {[%emt 00:00:06]} Qxe2 {[%clk 00:05:44]}
{[%emt 00:00:03]} 30. Re1 {[%clk 00:06:14]} {[%emt 00:00:06]} Qxc2 {[%clk
00:05:58]} {[%emt 00:00:16]} 31. Qxc2 {[%clk 00:05:30]} {[%emt 00:01:14]} Rxc2
{[%clk 00:06:26]} {[%emt 00:00:02]} 32. Re8+ {[%clk 00:05:23]} {[%emt
00:00:37]} Bf8 {[%clk 00:06:53]} {[%emt 00:00:03]} 33. Rb8 {[%clk 00:05:47]}
{[%emt 00:00:06]} Ba6 {[%clk 00:03:43]} {[%emt 00:03:40]} 34. Ra8 {[%clk
00:06:11]} {[%emt 00:00:06]} Rc7 {[%clk 00:03:17]} {[%emt 00:00:56]} 35. Be5
{[%clk 00:05:59]} {[%emt 00:00:41]} Rd7 {[%clk 00:03:09]} {[%emt 00:00:37]} 36.
Bb2 {[%clk 00:01:05]} {[%emt 00:05:26]} Bb7 {[%clk 00:03:30]} {[%emt 00:00:10]}
37. Rb8 {[%clk 00:01:30]} {[%emt 00:00:04]} Rc7 {[%clk 00:03:23]} {[%emt
00:00:37]} 38. Be5 {[%clk 00:01:07]} {[%emt 00:00:53]} Rc1+ {[%clk 00:01:48]}
{[%emt 00:02:05]} 39. Kh2 {[%clk 00:00:49]} {[%emt 00:00:47]} Bc8 {[%clk
00:01:26]} {[%emt 00:00:52]} 40. Bxd5 {[%clk 00:01:00]} {[%emt 00:00:20]} Rc2+
{[%clk 00:00:38]} {[%emt 00:01:18]} 41. Kg1 {[%clk 00:47:14]} {[%emt 00:04:16]}
Bg7 {[%clk 00:44:52]} {[%emt 00:06:16]} 42. Bxg7 {[%clk 00:24:01]} {[%emt
00:23:43]} Kxg7 {[%clk 00:45:15]} {[%emt 00:00:05]} 43. Bc4 {[%clk 00:24:13]}
{[%emt 00:00:19]} Bf5 {[%clk 00:31:16]} {[%emt 00:14:29]} 44. Rb7 {[%clk
00:24:22]} {[%emt 00:00:22]} Kf6 {[%clk 00:20:49]} {[%emt 00:10:57]} 45. Rxa7
{[%clk 00:17:49]} {[%emt 00:07:04]} Ke5 {[%clk 00:21:01]} {[%emt 00:00:18]} 46.
Bxf7 {[%clk 00:13:02]} {[%emt 00:05:16]} Ke4 {[%clk 00:16:16]} {[%emt
00:05:15]} 47. b4 {[%clk 00:13:24]} {[%emt 00:00:08]} Rb2 {[%clk 00:07:10]}
{[%emt 00:09:36]} 48. Ra3 {[%clk 00:09:41]} {[%emt 00:04:13]} Rxb4 {[%clk
00:06:25]} {[%emt 00:01:15]} 49. Bb3 {[%clk 00:10:01]} {[%emt 00:00:10]} Kd4
{[%clk 00:06:10]} {[%emt 00:00:44]} 50. Kf2 {[%clk 00:09:46]} {[%emt 00:00:45]}
Rb5 {[%clk 00:02:25]} {[%emt 00:04:16]} 51. Ra4+ {[%clk 00:10:03]} {[%emt
00:00:13]} Kc3 {[%clk 00:02:44]} {[%emt 00:00:11]} 52. Rc4+ {[%clk 00:10:27]}
{[%emt 00:00:07]} Kb2 {[%clk 00:03:08]} {[%emt 00:00:06]} 53. Rc6 {[%clk
00:10:52]} {[%emt 00:00:04]} Bb1 {[%clk 00:02:38]} {[%emt 00:01:01]} 54. Bc4
{[%clk 00:09:29]} {[%emt 00:01:53]} Rb4 {[%clk 00:02:20]} {[%emt 00:00:48]} 55.
Bf7 {[%clk 00:09:44]} {[%emt 00:00:14]} b5 {[%clk 00:01:29]} {[%emt 00:01:22]}
56. Rb6 {[%clk 00:07:34]} {[%emt 00:02:39]} Ka3 {[%clk 00:00:34]} {[%emt
00:01:25]} 57. Be8 {[%clk 00:04:40]} {[%emt 00:03:23]} Bxa2 {[%clk 00:00:32]}
{[%emt 00:00:33]} 58. Rxb5 {[%clk 00:03:57]} {[%emt 00:01:13]} Rd4 {[%clk
00:00:34]} {[%emt 00:00:29]} 59. Bxg6 {[%clk 00:03:47]} {[%emt 00:00:39]} Rd2+
{[%clk 00:00:49]} {[%emt 00:00:15]} 60. Ke3 {[%clk 00:04:06]} {[%emt 00:00:11]}
1-0

[Event "FIDE Grand Swiss 2023"]
[Site "Villa Marina, Douglas, Isle of Man, Isle Of Man"]
[Date "2023.11.02"]
[Round "8.21"]
[White "Korobov, Anton"]
[Black "Petrosyan, Manuel"]
[Result "1/2-1/2"]
[TimeControl "40/90 + 30 + 30s/move"]
[WhiteFideId "14105730"]
[BlackFideId "13300857"]
[WhiteElo "2658"]
[BlackElo "2604"]

1. Nf3 {[%clk 01:40:58]} {[%emt 00:00:01]} Nf6 {[%clk 01:36:44]} {[%emt
00:04:16]} 2. c4 {[%clk 01:41:19]} {[%emt 00:00:09]} e6 {[%clk 01:36:38]}
{[%emt 00:00:36]} 3. Nc3 {[%clk 01:40:55]} {[%emt 00:00:53]} d5 {[%clk
01:36:46]} {[%emt 00:00:23]} 4. e3 {[%clk 01:41:18]} {[%emt 00:00:07]} Bd6
{[%clk 01:35:03]} {[%emt 00:02:13]} 5. b3 {[%clk 01:40:16]} {[%emt 00:01:33]}
O-O {[%clk 01:35:05]} {[%emt 00:00:27]} 6. Bb2 {[%clk 01:39:36]} {[%emt
00:01:09]} c5 {[%clk 01:34:22]} {[%emt 00:01:14]} 7. cxd5 {[%clk 01:39:31]}
{[%emt 00:00:35]} exd5 {[%clk 01:34:42]} {[%emt 00:00:10]} 8. d4 {[%clk
01:39:56]} {[%emt 00:00:05]} cxd4 {[%clk 01:27:08]} {[%emt 00:08:04]} 9. Nxd4
{[%clk 01:40:09]} {[%emt 00:00:17]} Nc6 {[%clk 01:27:29]} {[%emt 00:00:10]} 10.
Be2 {[%clk 01:39:59]} {[%emt 00:00:39]} Nxd4 {[%clk 01:26:14]} {[%emt
00:01:45]} 11. Qxd4 {[%clk 01:37:30]} {[%emt 00:02:59]} Re8 {[%clk 01:26:13]}
{[%emt 00:00:31]} 12. Rd1 {[%clk 01:17:55]} {[%emt 00:20:05]} Be5 {[%clk
01:25:58]} {[%emt 00:00:45]} 13. Qd2 {[%clk 01:15:26]} {[%emt 00:02:59]} Bf5
{[%clk 01:26:01]} {[%emt 00:00:27]} 14. O-O {[%clk 01:12:29]} {[%emt 00:03:28]}
Rc8 {[%clk 01:20:01]} {[%emt 00:06:30]} 15. Bf3 {[%clk 01:10:35]} {[%emt
00:02:24]} Ne4 {[%clk 00:53:41]} {[%emt 00:26:50]} 16. Nxe4 {[%clk 01:08:18]}
{[%emt 00:02:47]} dxe4 {[%clk 00:52:07]} {[%emt 00:02:04]} 17. Qxd8 {[%clk
01:08:16]} {[%emt 00:00:32]} Rexd8 {[%clk 00:49:43]} {[%emt 00:02:54]} 18.
Rxd8+ {[%clk 01:07:23]} {[%emt 00:01:23]} Rxd8 {[%clk 00:49:59]} {[%emt
00:00:14]} 19. Bxe4 {[%clk 01:07:40]} {[%emt 00:00:13]} Bxh2+ {[%clk 00:49:12]}
{[%emt 00:01:17]} 20. Kxh2 {[%clk 01:08:06]} {[%emt 00:00:04]} Bxe4 {[%clk
00:49:37]} {[%emt 00:00:05]} 21. Bd4 {[%clk 01:07:58]} {[%emt 00:00:38]} a6
{[%clk 00:48:58]} {[%emt 00:01:10]} 22. Rc1 {[%clk 01:08:16]} {[%emt 00:00:12]}
Bc6 {[%clk 00:49:10]} {[%emt 00:00:17]} 23. Rc5 {[%clk 01:08:16]} {[%emt
00:00:30]} Rd5 {[%clk 00:49:03]} {[%emt 00:00:37]} 24. a3 {[%clk 01:07:45]}
{[%emt 00:01:01]} f6 {[%clk 00:47:48]} {[%emt 00:01:46]} 25. Rxd5 {[%clk
01:07:57]} {[%emt 00:00:18]} Bxd5 {[%clk 00:48:13]} {[%emt 00:00:04]} 26. b4
{[%clk 01:08:22]} {[%emt 00:00:04]} Bc6 {[%clk 00:48:16]} {[%emt 00:00:29]} 27.
f3 {[%clk 01:08:02]} {[%emt 00:00:50]} Kf7 {[%clk 00:48:41]} {[%emt 00:00:05]}
28. e4 {[%clk 01:08:26]} {[%emt 00:00:05]} h5 {[%clk 00:48:26]} {[%emt
00:00:45]} 29. Kg3 {[%clk 01:08:44]} {[%emt 00:00:11]} g5 {[%clk 00:48:44]}
{[%emt 00:00:13]} 30. Kf2 {[%clk 01:08:55]} {[%emt 00:00:19]} Kg6 {[%clk
00:47:57]} {[%emt 00:01:18]} 31. Bb6 {[%clk 01:08:40]} {[%emt 00:00:44]} f5
{[%clk 00:46:10]} {[%emt 00:02:17]} 32. exf5+ {[%clk 01:07:27]} {[%emt
00:01:43]} Kxf5 {[%clk 00:44:36]} {[%emt 00:02:05]} 33. Bd8 {[%clk 01:05:41]}
{[%emt 00:02:15]} g4 {[%clk 00:44:34]} {[%emt 00:00:32]} 34. fxg4+ {[%clk
01:06:00]} {[%emt 00:00:11]} hxg4 {[%clk 00:45:00]} {[%emt 00:00:04]} 35. g3
{[%clk 01:06:10]} {[%emt 00:00:20]} Ke4 {[%clk 00:45:27]} {[%emt 00:00:04]} 36.
Ke2 {[%clk 01:06:35]} {[%emt 00:00:04]} Kd4 {[%clk 00:45:52]} {[%emt 00:00:06]}
37. Kd2 {[%clk 01:06:52]} {[%emt 00:00:13]} Ba4 {[%clk 00:45:57]} {[%emt
00:00:25]} 38. b5 {[%clk 01:06:29]} {[%emt 00:00:53]} Bxb5 {[%clk 00:46:20]}
{[%emt 00:00:07]} 39. Kc2 {[%clk 01:06:52]} {[%emt 00:00:06]} Kc4 {[%clk
00:46:10]} {[%emt 00:00:40]} 1/2-1/2

[Event "FIDE Grand Swiss 2023"]
[Site "Villa Marina, Douglas, Isle of Man, Isle Of Man"]
[Date "2023.11.02"]
[Round "8.22"]
[White "Anton Guijarro, David"]
[Black "Svane, Frederik"]
[Result "1/2-1/2"]
[TimeControl "40/90 + 30 + 30s/move"]
[WhiteFideId "2285525"]
[BlackFideId "12923044"]
[WhiteElo "2653"]
[BlackElo "2626"]

1. e4 {[%clk 01:40:55]} {[%emt 00:00:04]} e5 {[%clk 01:40:54]} {[%emt
00:00:07]} 2. Nf3 {[%clk 01:41:12]} {[%emt 00:00:13]} Nc6 {[%clk 01:41:19]}
{[%emt 00:00:05]} 3. Bc4 {[%clk 01:41:14]} {[%emt 00:00:28]} Nf6 {[%clk
01:41:42]} {[%emt 00:00:07]} 4. d3 {[%clk 01:41:09]} {[%emt 00:00:35]} Bc5
{[%clk 01:42:07]} {[%emt 00:00:05]} 5. O-O {[%clk 01:40:57]} {[%emt 00:00:41]}
d6 {[%clk 01:41:58]} {[%emt 00:00:40]} 6. a4 {[%clk 01:40:15]} {[%emt
00:01:12]} O-O {[%clk 01:37:33]} {[%emt 00:04:55]} 7. h3 {[%clk 01:38:04]}
{[%emt 00:02:41]} a5 {[%clk 01:35:31]} {[%emt 00:02:32]} 8. Be3 {[%clk
01:37:38]} {[%emt 00:00:56]} Bxe3 {[%clk 01:30:44]} {[%emt 00:05:18]} 9. fxe3
{[%clk 01:38:02]} {[%emt 00:00:05]} Ne7 {[%clk 01:28:08]} {[%emt 00:03:06]} 10.
Nh4 {[%clk 01:21:37]} {[%emt 00:16:55]} c6 {[%clk 01:23:17]} {[%emt 00:05:21]}
11. Bb3 {[%clk 01:20:31]} {[%emt 00:01:36]} d5 {[%clk 01:13:31]} {[%emt
00:10:15]} 12. Nd2 {[%clk 00:51:42]} {[%emt 00:29:19]} Be6 {[%clk 00:48:34]}
{[%emt 00:25:28]} 13. Qe1 {[%clk 00:50:47]} {[%emt 00:01:25]} Ng6 {[%clk
00:35:59]} {[%emt 00:13:05]} 14. exd5 {[%clk 00:47:05]} {[%emt 00:04:12]} Bxd5
{[%clk 00:33:34]} {[%emt 00:02:55]} 15. Nf5 {[%clk 00:44:36]} {[%emt 00:02:59]}
e4 {[%clk 00:31:43]} {[%emt 00:02:21]} 16. d4 {[%clk 00:42:43]} {[%emt
00:02:23]} Bxb3 {[%clk 00:26:20]} {[%emt 00:05:53]} 17. Nxb3 {[%clk 00:43:00]}
{[%emt 00:00:13]} Qd5 {[%clk 00:26:27]} {[%emt 00:00:23]} 18. Qg3 {[%clk
00:25:19]} {[%emt 00:18:11]} b6 {[%clk 00:19:36]} {[%emt 00:07:21]} 19. Nd2
{[%clk 00:25:19]} {[%emt 00:00:29]} Rae8 {[%clk 00:14:49]} {[%emt 00:05:17]} 20.
b3 {[%clk 00:22:11]} {[%emt 00:03:39]} Qd8 {[%clk 00:14:15]} {[%emt 00:01:04]}
21. c4 {[%clk 00:17:55]} {[%emt 00:04:47]} Re6 {[%clk 00:14:10]} {[%emt
00:00:35]} 22. Nb1 {[%clk 00:15:07]} {[%emt 00:03:18]} Nh5 {[%clk 00:12:42]}
{[%emt 00:01:57]} 23. Qg4 {[%clk 00:15:21]} {[%emt 00:00:16]} Nf6 {[%clk
00:13:08]} {[%emt 00:00:04]} 24. Qe2 {[%clk 00:13:00]} {[%emt 00:02:51]} Ne7
{[%clk 00:12:15]} {[%emt 00:01:23]} 25. Nxe7+ {[%clk 00:10:38]} {[%emt
00:02:51]} Qxe7 {[%clk 00:12:38]} {[%emt 00:00:07]} 26. Nc3 {[%clk 00:11:04]}
{[%emt 00:00:05]} Nd7 {[%clk 00:11:19]} {[%emt 00:01:49]} 27. Rf4 {[%clk
00:10:01]} {[%emt 00:01:33]} f5 {[%clk 00:11:00]} {[%emt 00:00:48]} 28. Raf1
{[%clk 00:10:11]} {[%emt 00:00:20]} Ref6 {[%clk 00:11:21]} {[%emt 00:00:10]} 29.
g4 {[%clk 00:09:52]} {[%emt 00:00:48]} fxg4 {[%clk 00:07:34]} {[%emt 00:04:18]}
30. hxg4 {[%clk 00:10:06]} {[%emt 00:00:16]} g5 {[%clk 00:07:07]} {[%emt
00:00:56]} 31. Rxf6 {[%clk 00:08:59]} {[%emt 00:01:37]} Rxf6 {[%clk 00:07:20]}
{[%emt 00:00:18]} 32. Qh2 {[%clk 00:07:16]} {[%emt 00:02:12]} Qe6 {[%clk
00:06:00]} {[%emt 00:01:51]} 33. Qh5 {[%clk 00:06:33]} {[%emt 00:01:12]} Rxf1+
{[%clk 00:04:04]} {[%emt 00:02:27]} 34. Kxf1 {[%clk 00:07:00]} {[%emt
00:00:02]} h6 {[%clk 00:04:26]} {[%emt 00:00:09]} 35. Nd1 {[%clk 00:01:51]}
{[%emt 00:05:40]} Kg7 {[%clk 00:04:04]} {[%emt 00:00:51]} 36. Nf2 {[%clk
00:02:02]} {[%emt 00:00:19]} Nf6 {[%clk 00:04:30]} {[%emt 00:00:04]} 37. Qh2
{[%clk 00:02:28]} {[%emt 00:00:04]} Kg6 {[%clk 00:01:49]} {[%emt 00:03:12]} 38.
Qb8 {[%clk 00:01:44]} {[%emt 00:01:13]} Nxg4 {[%clk 00:01:18]} {[%emt
00:01:00]} 39. Nxg4 {[%clk 00:01:52]} {[%emt 00:00:22]} Qxg4 {[%clk 00:01:45]}
{[%emt 00:00:04]} 1/2-1/2